fUSD/lending_fUSD_20250519
["ID","MTS","AMOUNT","RATE_DAILY","PERIOD"]
[361570133,1747618258163,-400.0,0.00013808,2]
[361570134,1747618258177,-400.0,0.00013808,2]
[361570135,1747618258189,-500.0,0.00013808,2]
[361570136,1747618258201,-400.0,0.00013808,2]
[361570137,1747618258213,-400.0,0.00013808,2]
[361570138,1747618258227,-151.0,0.00013808,2]
[361570139,1747618258237,-151.0,0.00013808,2]
[361570140,1747618258246,-151.0,0.00013808,2]
[361570141,1747618258256,-1309.17,0.00013808,2]
[361570142,1747618258265,-400.0,0.00013808,2]
[361570143,1747618258275,-867.22,0.00013808,2]
[361570144,1747618258284,-400.0,0.00013808,2]
[361570145,1747618258294,-400.0,0.00013808,2]
[361570146,1747618258303,-400.0,0.00013808,2]
[361570147,1747618258313,-400.0,0.00013808,2]
[361570148,1747618258322,-403.66128293,0.00013808,2]
[361570149,1747618258331,-576.47,0.00013808,2]
[361570150,1747618258341,-400.0,0.00013808,2]
[361570151,1747618258350,-400.0,0.00013808,2]
[361570152,1747618258359,-417.70305127,0.00013808,2]
[361570153,1747618258368,-408.21644947,0.00013808,2]
[361570154,1747618258377,-400.0,0.00013808,2]
[361570155,1747618258386,-433.098841,0.00013808,2]
[361570156,1747618258395,-400.0,0.00013808,2]
[361570157,1747618258404,-827.27,0.00013808,2]
[361570158,1747618258413,-400.0,0.00013808,2]
[361570159,1747618258422,-433.098841,0.00013808,2]
[361570160,1747618258431,-433.098841,0.00013808,2]
[361570161,1747618258440,-500.13,0.00013808,2]
[361570162,1747618258449,-642.25,0.00013808,2]
[361570163,1747618258530,-151.0,0.00013808,2]
[361570164,1747618258539,-151.0,0.00013808,2]
[361570165,1747618258548,-400.0,0.00013808,2]
[361570166,1747618258557,-400.0,0.00013808,2]
[361570167,1747618258565,-433.098841,0.00013808,2]
[361570168,1747618258575,-433.098841,0.00013808,2]
[361570169,1747618258583,-433.098841,0.00013808,2]
[361570170,1747618258592,-400.0,0.00013808,2]
[361570171,1747618258601,-400.0,0.00013808,2]
[361570172,1747618258610,-151.0,0.00013808,2]
[361570173,1747618258628,-400.0,0.00013808,2]
[361570174,1747618258637,-400.0,0.00013808,2]
[361570175,1747618258646,-400.0,0.00013808,2]
[361570176,1747618258655,-151.0,0.00013808,2]
[361570177,1747618258665,-151.0,0.00013808,2]
[361570178,1747618258673,-960.59,0.00013808,2]
[361570179,1747618258682,-151.0,0.00013808,2]
[361570180,1747618258691,-706.32,0.00013808,2]
[361570181,1747618258700,-667.32,0.00013808,2]
[361570182,1747618258709,-400.0,0.00013808,2]
[361570183,1747618258718,-618.27,0.00013808,2]
[361570184,1747618258729,-1101.95,0.00013808,2]
[361570185,1747618258738,-400.0,0.00013808,2]
[361570186,1747618258747,-400.0,0.00013808,2]
[361570187,1747618258757,-151.0,0.00013808,2]
[361570188,1747618258766,-151.0,0.00013808,2]
[361570189,1747618258776,-151.0,0.00013808,2]
[361570190,1747618258785,-459.60157457,0.00013808,2]
[361570191,1747618258795,-400.0,0.00013808,2]
[361570192,1747618258805,-448.97,0.00013808,2]
[361570193,1747618258814,-400.0,0.00013808,2]
[361570194,1747618258824,-788.72,0.00013808,2]
[361570195,1747618258833,-400.0,0.00013808,2]
[361570196,1747618258842,-400.0,0.00013808,2]
[361570197,1747618258851,-400.0,0.00013808,2]
[361570198,1747618258860,-425.61560095,0.00013808,2]
[361570199,1747618258869,-395.948257,0.00013808,2]
[361570200,1747618258878,-744.07,0.00013808,2]
[361570201,1747618258887,-400.0,0.00013808,2]
[361570202,1747618258896,-152.54010217,0.00013808,2]
[361570203,1747618258905,-400.0,0.00013808,2]
[361570204,1747618258915,-400.0,0.00013808,2]
[361570205,1747618258923,-400.0,0.00013808,2]
[361570206,1747618258932,-400.0,0.00013808,2]
[361570207,1747618258941,-945.34,0.00013808,2]
[361570208,1747618258951,-400.0,0.00013808,2]
[361570209,1747618258959,-400.0,0.00013808,2]
[361570210,1747618258968,-400.0,0.00013808,2]
[361570211,1747618258981,-400.0,0.00013808,2]
[361570212,1747618258990,-400.0,0.00013808,2]
[361570213,1747618258999,-151.0,0.00013808,2]
[361570214,1747618259008,-266.39811612,0.00013808,2]
[361570215,1747618259017,-151.0,0.00013808,2]
[361570216,1747618259026,-400.0,0.00013808,2]
[361570217,1747618259035,-371.38077958,0.00013808,2]
[361570218,1747618259044,-151.0,0.00013808,2]
[361570219,1747618259054,-151.0,0.00013808,2]
[361570220,1747618259063,-151.0,0.00013808,2]
[361570221,1747618259072,-400.0,0.00013808,2]
[361570222,1747618259082,-400.0,0.00013808,2]
[361570223,1747618259095,-400.0,0.00013808,2]
[361570224,1747618259104,-450.0,0.00013808,2]
[361570225,1747618259114,-151.0,0.00013808,2]
[361570226,1747618259123,-151.0,0.00013808,2]
[361570227,1747618259132,-151.0,0.00013808,2]
[361570228,1747618259141,-151.0,0.00013808,2]
[361570229,1747618259150,-151.0,0.00013808,2]
[361570230,1747618259159,-151.0,0.00013808,2]
[361570231,1747618259169,-972.67,0.00013808,2]
[361570232,1747618259178,-451.56,0.00013808,2]
[361570233,1747618259188,-512.12,0.00013808,2]
[361570234,1747618259197,-400.0,0.00013808,2]
[361570235,1747618259207,-400.0,0.00013808,2]
[361570236,1747618259216,-400.0,0.00013808,2]
[361570237,1747618259229,-151.0,0.00013808,2]
[361570238,1747618259238,-289.658726,0.00013808,2]
[361570239,1747618259248,-400.0,0.00013808,2]
[361570240,1747618259257,-400.0,0.00013808,2]
[361570241,1747618259267,-400.0,0.00013808,2]
[361570242,1747618259276,-421.88,0.00013808,2]
[361570243,1747618259286,-400.0,0.00013808,2]
[361570244,1747618259295,-400.0,0.00013808,2]
[361570245,1747618259304,-403.57,0.00013808,2]
[361570246,1747618259313,-478.09,0.00013808,2]
[361570247,1747618259322,-1467.16,0.00013808,2]
[361570248,1747618259332,-400.0,0.00013808,2]
[361570249,1747618259341,-400.0,0.00013808,2]
[361570250,1747618259350,-366.50340508,0.00013808,2]
[361570251,1747618259359,-400.0,0.00013808,2]
[361570252,1747618259368,-499.08,0.00013808,2]
[361570253,1747618259377,-400.0,0.00013808,2]
[361570254,1747618259386,-1430.29,0.00013808,2]
[361570255,1747618259395,-151.0,0.00013808,2]
[361570256,1747618259405,-151.0,0.00013808,2]
[361570257,1747618259415,-151.0,0.00013808,2]
[361570258,1747618259424,-151.0,0.00013808,2]
[361570259,1747618259433,-902.77,0.00013808,2]
[361570260,1747618259443,-400.0,0.00013808,2]
[361570261,1747618259452,-400.0,0.00013808,2]
[361570262,1747618259461,-880.12,0.00013808,2]
[361570263,1747618259470,-250.76352385,0.00013808,2]
[361570264,1747618259482,-400.0,0.00013808,2]
[361570265,1747618259492,-151.0,0.00013808,2]
[361570266,1747618259501,-1000.0,0.00013808,2]
[361570267,1747618259510,-151.0,0.00013808,2]
[361570268,1747618259519,-151.0,0.00013808,2]
[361570269,1747618259530,-151.0,0.00013808,2]
[361570270,1747618259539,-151.0,0.00013808,2]
[361570271,1747618259547,-400.0,0.00013808,2]
[361570272,1747618259557,-767.74,0.00013808,2]
[361570273,1747618259567,-400.0,0.00013808,2]
[361570274,1747618259576,-400.0,0.00013808,2]
[361570275,1747618259585,-704.61,0.00013808,2]
[361570276,1747618259594,-400.0,0.00013808,2]
[361570277,1747618259603,-400.0,0.00013808,2]
[361570278,1747618259612,-296.4,0.00013808,2]
[361570279,1747618259621,-400.0,0.00013808,2]
[361570280,1747618259630,-400.0,0.00013808,2]
[361570281,1747618259639,-400.0,0.00013808,2]
[361570282,1747618259648,-604.1,0.00013808,2]
[361570283,1747618259657,-400.0,0.00013808,2]
[361570284,1747618259666,-295.921388,0.00013808,2]
[361570285,1747618259676,-1254.73,0.00013808,2]
[361570286,1747618259685,-151.0,0.00013808,2]
[361570287,1747618259694,-616.2,0.00013808,2]
[361570288,1747618259703,-181.61789515,0.00013808,2]
[361570289,1747618259712,-400.0,0.00013808,2]
[361570290,1747618259721,-400.0,0.00013808,2]
[361570291,1747618259734,-150.0,0.00013808,2]
[361570292,1747618259743,-400.0,0.00013808,2]
[361570293,1747618259752,-400.0,0.00013808,2]
[361570294,1747618259761,-560.86,0.00013808,2]
[361570295,1747618259770,-680.68,0.00013808,2]
[361570296,1747618259779,-400.0,0.00013808,2]
[361570297,1747618259789,-400.0,0.00013808,2]
[361570298,1747618259798,-589.96,0.00013808,2]
[361570299,1747618259808,-258.9199018,0.00013808,2]
[361570300,1747618259817,-764.74,0.00013808,2]
[361570301,1747618259826,-400.0,0.00013808,2]
[361570302,1747618259835,-400.0,0.00013808,2]
[361570303,1747618259844,-400.0,0.00013808,2]
[361570304,1747618259854,-400.0,0.00013808,2]
[361570305,1747618259863,-490.82,0.00013808,2]
[361570306,1747618259872,-400.0,0.00013808,2]
[361570307,1747618259881,-151.0,0.00013808,2]
[361570308,1747618259891,-151.0,0.00013808,2]
[361570309,1747618259900,-552.76,0.00013808,2]
[361570310,1747618259909,-151.0,0.00013808,2]
[361570311,1747618259918,-151.0,0.00013808,2]
[361570312,1747618259928,-400.0,0.00013808,2]
[361570313,1747618259937,-481.62,0.00013808,2]
[361570314,1747618259947,-934.91,0.00013808,2]
[361570315,1747618259956,-1171.25,0.00013808,2]
[361570316,1747618259965,-151.0,0.00013808,2]
[361570317,1747618259977,-151.0,0.00013808,2]
[361570318,1747618259987,-151.0,0.00013808,2]
[361570319,1747618259996,-632.43,0.00013808,2]
[361570320,1747618260006,-602.42,0.00013808,2]
[361570321,1747618260015,-239.069243,0.00013808,2]
[361570322,1747618260025,-400.0,0.00013808,2]
[361570323,1747618260035,-563.07,0.00013808,2]
[361570324,1747618260047,-201.04298743,0.00013808,2]
[361570325,1747618260058,-400.0,0.00013808,2]
[361570326,1747618260068,-151.0,0.00013808,2]
[361570327,1747618260078,-154.390768,0.00013808,2]
[361570328,1747618260089,-400.0,0.00013808,2]
[361570329,1747618260100,-713.61,0.00013808,2]
[361570330,1747618260110,-400.0,0.00013808,2]
[361570331,1747618260120,-1278.49,0.00013808,2]
[361570332,1747618260131,-253.79630221,0.00013808,2]
[361570333,1747618260140,-1096.42,0.00013808,2]
[361570334,1747618260151,-703.21,0.00013808,2]
[361570335,1747618260161,-551.21,0.00013808,2]
[361570336,1747618260170,-400.0,0.00013808,2]
[361570337,1747618260180,-158.058379,0.00013808,2]
[361570338,1747618260189,-400.0,0.00013808,2]
[361570339,1747618260199,-528.23,0.00013808,2]
[361570340,1747618260208,-602.21,0.00013808,2]
[361570341,1747618260217,-400.0,0.00013808,2]
[361570342,1747618260229,-400.0,0.00013808,2]
[361570343,1747618260238,-400.0,0.00013808,2]
[361570344,1747618260248,-400.0,0.00013808,2]
[361570345,1747618260257,-165.90964589,0.00013808,2]
[361570346,1747618260267,-151.0,0.00013808,2]
[361570347,1747618260277,-400.0,0.00013808,2]
[361570348,1747618260286,-151.0,0.00013808,2]
[361570349,1747618260296,-400.0,0.00013808,2]
[361570350,1747618260305,-444.42,0.00013808,2]
[361570351,1747618260314,-962.11,0.00013808,2]
[361570352,1747618260324,-400.0,0.00013808,2]
[361570353,1747618260333,-400.0,0.00013808,2]
[361570354,1747618260342,-400.0,0.00013808,2]
[361570355,1747618260351,-477.13,0.00013808,2]
[361570356,1747618260361,-418.95,0.00013808,2]
[361570357,1747618260370,-471.8,0.00013808,2]
[361570358,1747618260379,-606.96,0.00013808,2]
[361570359,1747618260389,-872.08,0.00013808,2]
[361570360,1747618260399,-400.0,0.00013808,2]
[361570361,1747618260407,-400.0,0.00013808,2]
[361570362,1747618260416,-151.0,0.00013808,2]
[361570363,1747618260425,-151.0,0.00013808,2]
[361570364,1747618260434,-151.0,0.00013808,2]
[361570365,1747618260443,-400.0,0.00013808,2]
[361570366,1747618260452,-400.0,0.00013808,2]
[361570367,1747618260462,-1467.48,0.00013808,2]
[361570368,1747618260471,-508.35,0.00013808,2]
[361570369,1747618260485,-400.0,0.00013808,2]
[361570370,1747618260494,-661.79,0.00013808,2]
[361570371,1747618260503,-880.83,0.00013808,2]
[361570372,1747618260512,-444.28,0.00013808,2]
[361570373,1747618260520,-400.0,0.00013808,2]
[361570374,1747618260529,-713.34,0.00013808,2]
[361570375,1747618260537,-400.0,0.00013808,2]
[361570376,1747618260546,-400.0,0.00013808,2]
[361570377,1747618260555,-912.3,0.00013808,2]
[361570378,1747618260564,-405.09790886,0.00013808,2]
[361570379,1747618260572,-721.36,0.00013808,2]
[361570380,1747618260581,-1233.74,0.00013808,2]
[361570381,1747618260590,-441.8106168,0.00013808,2]
[361570382,1747618260599,-400.0,0.00013808,2]
[361570383,1747618260608,-400.0,0.00013808,2]
[361570384,1747618260617,-445.9,0.00013808,2]
[361570385,1747618260626,-151.0,0.00013808,2]
[361570386,1747618260635,-151.0,0.00013808,2]
[361570387,1747618260644,-400.0,0.00013808,2]
[361570388,1747618260653,-734.96,0.00013808,2]
[361570389,1747618260662,-400.0,0.00013808,2]
[361570390,1747618260671,-400.0,0.00013808,2]
[361570391,1747618260680,-518.44,0.00013808,2]
[361570392,1747618260689,-400.0,0.00013808,2]
[361570393,1747618260697,-748.75,0.00013808,2]
[361570394,1747618260705,-400.0,0.00013808,2]
[361570395,1747618260714,-513.44,0.00013808,2]
[361570396,1747618260729,-655.17,0.00013808,2]
[361570397,1747618260739,-400.0,0.00013808,2]
[361570398,1747618260748,-400.0,0.00013808,2]
[361570399,1747618260757,-858.84,0.00013808,2]
[361570400,1747618260766,-1346.4,0.00013808,2]
[361570401,1747618260776,-1282.68,0.00013808,2]
[361570402,1747618260786,-400.0,0.00013808,2]
[361570403,1747618260794,-677.77,0.00013808,2]
[361570404,1747618260803,-400.0,0.00013808,2]
[361570405,1747618260812,-402.77040668,0.00013808,2]
[361570406,1747618260821,-400.0,0.00013808,2]
[361570407,1747618260830,-400.0,0.00013808,2]
[361570408,1747618260839,-400.0,0.00013808,2]
[361570409,1747618260848,-420.92,0.00013808,2]
[361570410,1747618260857,-400.0,0.00013808,2]
[361570411,1747618260866,-400.0,0.00013808,2]
[361570412,1747618260875,-400.0,0.00013808,2]
[361570413,1747618260885,-400.0,0.00013808,2]
[361570414,1747618260894,-278.63347,0.00013808,2]
[361570415,1747618260902,-351.19050883,0.00013808,2]
[361570416,1747618260912,-278.63347,0.00013808,2]
[361570417,1747618260920,-278.63347,0.00013808,2]
[361570418,1747618260929,-570.38,0.00013808,2]
[361570419,1747618260938,-349.23171662,0.00013808,2]
[361570420,1747618260947,-400.0,0.00013808,2]
[361570421,1747618260956,-151.0,0.00013808,2]
[361570422,1747618260965,-151.0,0.00013808,2]
[361570423,1747618260977,-278.63347,0.00013808,2]
[361570424,1747618260986,-151.0,0.00013808,2]
[361570425,1747618260995,-476.70101097,0.00013808,2]
[361570426,1747618261003,-278.63347,0.00013808,2]
[361570427,1747618261012,-151.0,0.00013808,2]
[361570428,1747618261021,-278.63347,0.00013808,2]
[361570429,1747618261030,-523.63,0.00013808,2]
[361570430,1747618261039,-671.61,0.00013808,2]
[361570431,1747618261048,-151.0,0.00013808,2]
[361570432,1747618261057,-151.0,0.00013808,2]
[361570433,1747618261066,-151.0,0.00013808,2]
[361570434,1747618261075,-151.0,0.00013808,2]
[361570435,1747618261083,-400.0,0.00013808,2]
[361570436,1747618261094,-400.0,0.00013808,2]
[361570437,1747618261104,-470.91,0.00013808,2]
[361570438,1747618261113,-651.52,0.00013808,2]
[361570439,1747618261122,-2233.38,0.00013808,2]
[361570440,1747618261131,-400.0,0.00013808,2]
[361570441,1747618261141,-1506.61,0.00013808,2]
[361570442,1747618261150,-400.0,0.00013808,2]
[361570443,1747618261159,-400.0,0.00013808,2]
[361570444,1747618261168,-1209.79,0.00013808,2]
[361570445,1747618261178,-432.58,0.00013808,2]
[361570446,1747618261187,-400.0,0.00013808,2]
[361570447,1747618261196,-400.0,0.00013808,2]
[361570448,1747618261206,-400.0,0.00013808,2]
[361570449,1747618261215,-432.86,0.00013808,2]
[361570450,1747618261229,-151.0,0.00013808,2]
[361570451,1747618261239,-151.0,0.00013808,2]
[361570452,1747618261248,-151.0,0.00013808,2]
[361570453,1747618261258,-151.0,0.00013808,2]
[361570454,1747618261268,-400.0,0.00013808,2]
[361570455,1747618261277,-151.0,0.00013808,2]
[361570456,1747618261287,-151.0,0.00013808,2]
[361570457,1747618261296,-151.0,0.00013808,2]
[361570458,1747618261306,-400.0,0.00013808,2]
[361570459,1747618261315,-783.28,0.00013808,2]
[361570460,1747618261324,-400.0,0.00013808,2]
[361570461,1747618261333,-400.0,0.00013808,2]
[361570462,1747618261342,-400.0,0.00013808,2]
[361570463,1747618261351,-598.56,0.00013808,2]
[361570464,1747618261361,-400.0,0.00013808,2]
[361570465,1747618261370,-400.0,0.00013808,2]
[361570466,1747618261379,-1305.51,0.00013808,2]
[361570467,1747618261388,-151.0,0.00013808,2]
[361570468,1747618261397,-151.0,0.00013808,2]
[361570469,1747618261406,-400.0,0.00013808,2]
[361570470,1747618261415,-151.0,0.00013808,2]
[361570471,1747618261425,-400.0,0.00013808,2]
[361570472,1747618261434,-594.73,0.00013808,2]
[361570473,1747618261443,-401.27469673,0.00013808,2]
[361570474,1747618261451,-400.0,0.00013808,2]
[361570475,1747618261460,-400.0,0.00013808,2]
[361570476,1747618261470,-151.0,0.00013808,2]
[361570477,1747618261481,-151.0,0.00013808,2]
[361570478,1747618261490,-400.0,0.00013808,2]
[361570479,1747618261499,-151.0,0.00013808,2]
[361570480,1747618261509,-484.19,0.00013808,2]
[361570481,1747618261517,-400.0,0.00013808,2]
[361570482,1747618261527,-400.0,0.00013808,2]
[361570483,1747618261536,-591.02,0.00013808,2]
[361570484,1747618261545,-1069.06,0.00013808,2]
[361570485,1747618261554,-400.0,0.00013808,2]
[361570486,1747618261564,-1079.06,0.00013808,2]
[361570487,1747618261573,-151.0,0.00013808,2]
[361570488,1747618261581,-400.0,0.00013808,2]
[361570489,1747618261591,-400.0,0.00013808,2]
[361570490,1747618261599,-402.77372088,0.00013808,2]
[361570491,1747618261609,-400.0,0.00013808,2]
[361570492,1747618261619,-400.0,0.00013808,2]
[361570493,1747618261628,-158.075713,0.00013808,2]
[361570494,1747618261637,-400.0,0.00013808,2]
[361570495,1747618261646,-158.075713,0.00013808,2]
[361570496,1747618261656,-158.075713,0.00013808,2]
[361570497,1747618261665,-400.0,0.00013808,2]
[361570498,1747618261674,-400.0,0.00013808,2]
[361570499,1747618261684,-751.35,0.00013808,2]
[361570500,1747618261692,-712.36,0.00013808,2]
[361570501,1747618261701,-151.0,0.00013808,2]
[361570502,1747618261711,-158.075713,0.00013808,2]
[361570503,1747618261720,-151.0,0.00013808,2]
[361570504,1747618261733,-158.075713,0.00013808,2]
[361570505,1747618261742,-151.0,0.00013808,2]
[361570506,1747618261751,-158.075713,0.00013808,2]
[361570507,1747618261761,-1166.44,0.00013808,2]
[361570508,1747618261771,-400.0,0.00013808,2]
[361570509,1747618261780,-405.45,0.00013808,2]
[361570510,1747618261790,-400.0,0.00013808,2]
[361570511,1747618261799,-338.41129297,0.00013808,2]
[361570512,1747618261808,-1132.61,0.00013808,2]
[361570513,1747618261818,-400.0,0.00013808,2]
[361570514,1747618261827,-489.21586008,0.00013808,2]
[361570515,1747618261836,-1164.52,0.00013808,2]
[361570516,1747618261846,-400.0,0.00013808,2]
[361570517,1747618261855,-732.32,0.00013808,2]
[361570518,1747618261864,-400.0,0.00013808,2]
[361570519,1747618261874,-285.438176,0.00013808,2]
[361570520,1747618261883,-1252.48,0.00013808,2]
[361570521,1747618261892,-812.84,0.00013808,2]
[361570522,1747618261901,-1046.28,0.00013808,2]
[361570523,1747618261910,-2540.94,0.00013808,2]
[361570524,1747618261920,-192.65,0.00013808,2]
[361570525,1747618261929,-400.0,0.00013808,2]
[361570526,1747618261939,-883.57,0.00013808,2]
[361570527,1747618261949,-620.72,0.00013808,2]
[361570528,1747618261958,-575.99,0.00013808,2]
[361570529,1747618261967,-400.0,0.00013808,2]
[361570530,1747618261980,-400.0,0.00013808,2]
[361570531,1747618261989,-509.11,0.00013808,2]
[361570532,1747618261998,-1510.53,0.00013808,2]
[361570533,1747618262007,-181.34653969,0.00013808,2]
[361570534,1747618262017,-1530.67,0.00013808,2]
[361570535,1747618262027,-400.0,0.00013808,2]
[361570536,1747618262036,-982.97,0.00013808,2]
[361570537,1747618262045,-705.4,0.00013808,2]
[361570538,1747618262055,-400.0,0.00013808,2]
[361570539,1747618262064,-400.0,0.00013808,2]
[361570540,1747618262073,-400.0,0.00013808,2]
[361570541,1747618262082,-400.0,0.00013808,2]
[361570542,1747618262095,-400.0,0.00013808,2]
[361570543,1747618262104,-400.0,0.00013808,2]
[361570544,1747618262113,-151.0,0.00013808,2]
[361570545,1747618262122,-400.0,0.00013808,2]
[361570546,1747618262133,-151.0,0.00013808,2]
[361570547,1747618262142,-926.74,0.00013808,2]
[361570548,1747618262152,-431.59,0.00013808,2]
[361570549,1747618262162,-1000.0,0.00013808,2]
[361570550,1747618262171,-549.79,0.00013808,2]
[361570551,1747618262182,-400.0,0.00013808,2]
[361570552,1747618262192,-2680.97,0.00013808,2]
[361570553,1747618262203,-400.0,0.00013808,2]
[361570554,1747618262214,-1054.66,0.00013808,2]
[361570555,1747618262226,-400.0,0.00013808,2]
[361570556,1747618262235,-2773.47,0.00013808,2]
[361570557,1747618262245,-810.26,0.00013808,2]
[361570558,1747618262254,-400.0,0.00013808,2]
[361570559,1747618262264,-400.0,0.00013808,2]
[361570560,1747618262274,-516.38,0.00013808,2]
[361570561,1747618262283,-1069.74,0.00013808,2]
[361570562,1747618262293,-400.0,0.00013808,2]
[361570563,1747618262303,-400.0,0.00013808,2]
[361570564,1747618262312,-400.0,0.00013808,2]
[361570565,1747618262321,-2389.76,0.00013808,2]
[361570566,1747618262330,-804.47,0.00013808,2]
[361570567,1747618262339,-667.2,0.00013808,2]
[361570568,1747618262349,-525.41,0.00013808,2]
[361570569,1747618262358,-713.0,0.00013808,2]
[361570570,1747618262367,-649.08,0.00013808,2]
[361570571,1747618262377,-400.0,0.00013808,2]
[361570572,1747618262387,-509.01,0.00013808,2]
[361570573,1747618262396,-2071.27,0.00013808,2]
[361570574,1747618262408,-569.63,0.00013808,2]
[361570575,1747618262417,-840.06,0.00013808,2]
[361570576,1747618262427,-1264.299191,0.00013808,2]
[361570577,1747618262437,-1264.299191,0.00013808,2]
[361570578,1747618262447,-1264.299191,0.00013808,2]
[361570579,1747618262456,-407.2,0.00013808,2]
[361570580,1747618262466,-1217.1,0.00013808,2]
[361570581,1747618262478,-400.0,0.00013808,2]
[361570582,1747618262488,-157.2417089,0.00013808,2]
[361570583,1747618262497,-1264.299191,0.00013808,2]
[361570584,1747618262507,-400.0,0.00013808,2]
[361570585,1747618262517,-1264.299191,0.00013808,2]
[361570586,1747618262526,-1264.299191,0.00013808,2]
[361570587,1747618262535,-400.0,0.00013808,2]
[361570588,1747618262668,-400.0,0.00013808,2]
[361570589,1747618262679,-400.0,0.00013808,2]
[361570590,1747618262689,-1819.65,0.00013808,2]
[361570591,1747618262699,-400.0,0.00013808,2]
[361570592,1747618262708,-415.15,0.00013808,2]
[361570593,1747618262719,-151.0,0.00013808,2]
[361570594,1747618262733,-400.0,0.00013808,2]
[361570595,1747618262743,-151.0,0.00013808,2]
[361570596,1747618262752,-828.67,0.00013808,2]
[361570597,1747618262762,-151.0,0.00013808,2]
[361570598,1747618262771,-400.0,0.00013808,2]
[361570599,1747618262781,-533.28,0.00013808,2]
[361570600,1747618262791,-2199.4,0.00013808,2]
[361570601,1747618262800,-971.46,0.00013808,2]
[361570602,1747618262810,-1612.81,0.00013808,2]
[361570603,1747618262819,-400.0,0.00013808,2]
[361570604,1747618262829,-576.74,0.00013808,2]
[361570605,1747618262838,-1025.28,0.00013808,2]
[361570606,1747618262847,-1470.98,0.00013808,2]
[361570607,1747618262857,-400.0,0.00013808,2]
[361570608,1747618262866,-400.0,0.00013808,2]
[361570609,1747618262875,-400.0,0.00013808,2]
[361570610,1747618262885,-400.0,0.00013808,2]
[361570611,1747618262894,-400.0,0.00013808,2]
[361570612,1747618262904,-13113.67,0.00013808,2]
[361570613,1747618262913,-937.4,0.00013808,2]
[361570614,1747618262923,-400.0,0.00013808,2]
[361570615,1747618262933,-400.0,0.00013808,2]
[361570616,1747618262942,-1807.61,0.00013808,2]
[361570617,1747618262952,-402.96,0.00013808,2]
[361570618,1747618262961,-400.0,0.00013808,2]
[361570619,1747618262971,-1415.75,0.00013808,2]
[361570620,1747618262987,-400.0,0.00013808,2]
[361570621,1747618262996,-743.03,0.00013808,2]
[361570622,1747618263006,-400.0,0.00013808,2]
[361570623,1747618263016,-865.71,0.00013808,2]
[361570624,1747618263027,-400.0,0.00013808,2]
[361570625,1747618263037,-653.23,0.00013808,2]
[361570626,1747618263047,-1195.15,0.00013808,2]
[361570627,1747618263057,-824.24,0.00013808,2]
[361570628,1747618263068,-400.0,0.00013808,2]
[361570629,1747618263078,-906.98,0.00013808,2]
[361570630,1747618263089,-2108.47,0.00013808,2]
[361570631,1747618263101,-4444.3,0.00013808,2]
[361570632,1747618263111,-570.23,0.00013808,2]